[Event "July 23 Late 2024"]
[Site "Chess.com"]
[Date "2024.07.23"]
[Round "6.13"]
[White "Terry, Renato"]
[Black "Shirov, Alexei"]
[Result "1-0"]
[ECO "A06"]
[WhiteElo "3009"]
[BlackElo "2820"]
[PlyCount "97"]
[EventDate "2024.??.??"]
[WhiteTeam "PER"]
[BlackTeam "ESP"]
[TimeControl "180+1"]
[WhiteClock "0:00:10"]
[BlackClock "0:00:09"]

1. Nf3 {[%emt 0:00:04]} d5 {[%emt 0:00:04]} 2. b3 {[%emt 0:00:01]} Bg4 {[%emt 0:00:05]} 3. Bb2 {[%emt 0:00:01]} Nd7 {[%emt 0:00:02]} 4. g3 {[%emt 0:00:03]} Ngf6 {[%emt 0:00:06]} 5. Bg2 {[%emt 0:00:00]} e6 {[%emt 0:00:01]} 6. d3 {[%emt 0:00:02]} ({RR} 6. O-O Bc5 7. h3 Bh5 8. d3 O-O 9. Nbd2 Re8 10. c4 c6 11. a3 a5 12. Bc3 e5 13. b4 d4 14. bxc5 dxc3 15. Nb1 e4 16. dxe4 Nxe4 17. Qc1 Qf6 18. g4 Ndxc5 19. gxh5 Nb3 20. Qc2 Nxa1 {Yue,T (2047)-Nuri,M (2291) chess.com INT 2025 0-1 (31)}) 6... Bd6 {[%emt 0:00:07]} 7. Nbd2 {[%emt 0:00:01]} Qe7 {[%emt 0:00:04]} ({RR} 7... O-O 8. h3 Bh5 9. g4 Bg6 10. Nh4 Be5 11. d4 Bd6 12. Nxg6 hxg6 13. e3 c5 14. g5 Nh5 15. Nf3 cxd4 16. Qxd4 Rc8 17. O-O-O Qc7 18. Rd2 Nc5 19. Ne1 Rfd8 20. Kb1 e5 21. Qg4 d4 22. Nf3 {Carlsen,M (2859)-Keymer,V (2696) Almaty KAZ 2022 1-0}) 8. a3 $146 {[%emt 0:00:05]} ({RR} 8. h3 Bxf3 9. Bxf3 Ba3 10. Qc1 Bxb2 11. Qxb2 e5 12. e3 O-O 13. O-O a5 14. a3 Rfe8 15. Bg2 h5 16. b4 h4 17. g4 Nb6 18. c4 axb4 19. axb4 c6 20. Rxa8 Rxa8 21. cxd5 Nfxd5 22. b5 Na4 {Dragun,K (2610)-Holt,C (2578) Chess.com INT 2018 ½-½}) 8... e5 {[%emt 0:00:08]} 9. e4 {[%emt 0:00:02]} Nc5 {[%emt 0:00:03]} 10. exd5 {[%emt 0:00:13]} Nxd5 {[%emt 0:00:13]} 11. h3 {[%emt 0:00:04]} Bh5 {[%emt 0:00:08]} 12. O-O {[%emt 0:00:05]} O-O {[%emt 0:00:05]} 13. Qe1 {[%emt 0:00:01]} Rae8 {[%emt 0:00:17]} 14. Ne4 {[%emt 0:00:01]} Nxe4 {[%emt 0:00:06]} 15. dxe4 {[%emt 0:00:01]} Nb6 {[%emt 0:00:03]} 16. Nh4 {[%emt 0:00:03]} Bg6 {[%emt 0:00:18]} 17. Qa5 {[%emt 0:00:06]} a6 {[%emt 0:00:02]} 18. Nf5 {[%emt 0:00:02]} Bxf5 {[%emt 0:00:03]} 19. exf5 {[%emt 0:00:00]} Qg5 {[%emt 0:00:13]} 20. Be4 {[%emt 0:00:18]} Nd7 {[%emt 0:00:02]} 21. Kg2 {[%emt 0:00:23]} Nc5 {[%emt 0:00:01]} 22. Qe1 {[%emt 0:00:01]} g6 {[%emt 0:00:05]} 23. Bc1 {[%emt 0:00:05]} Qh5 {[%emt 0:00:02]} 24. g4 {[%emt 0:00:10]} Qh4 {[%emt 0:00:02]} 25. f3 {[%emt 0:00:01]} Qxe1 {[%emt 0:00:03]} 26. Rxe1 {[%emt 0:00:00]} Nxe4 {[%emt 0:00:02]} 27. fxe4 {[%emt 0:00:04]} Rd8 {[%emt 0:00:06]} 28. Be3 {[%emt 0:00:31]} f6 {[%emt 0:00:03]} 29. Red1 {[%emt 0:00:02]} Kf7 {[%emt 0:00:03]} 30. Kf3 {[%emt 0:00:02]} h5 {[%emt 0:00:04]} 31. gxh5 {[%emt 0:00:07]} gxf5 {[%emt 0:00:03]} 32. exf5 {[%emt 0:00:01]} e4+ {[%emt 0:00:06]} 33. Ke2 {[%emt 0:00:14]} Rh8 {[%emt 0:00:08]} 34. h6 {[%emt 0:00:01]} Rdg8 {[%emt 0:00:04]} 35. Rg1 {[%emt 0:00:04]} Bf8 {[%emt 0:00:11]} 36. Rxg8 {[%emt 0:00:13]} Rxg8 {[%emt 0:00:02]} 37. Rd1 {[%emt 0:00:01]} Rg2+ {[%emt 0:00:01]} 38. Kf1 {[%emt 0:00:00]} Rxc2 {[%emt 0:00:03]} 39. h7 {[%emt 0:00:07]} Kg7 {[%emt 0:00:02]} 40. Rd8 {[%emt 0:00:01]} Rc3 {[%emt 0:00:02]} 41. Ke2 {[%emt 0:00:08]} Kxh7 {[%emt 0:00:02]} 42. Rxf8 {[%emt 0:00:00]} Rxb3 {[%emt 0:00:01]} 43. Rxf6 {[%emt 0:00:02]} Rxa3 {[%emt 0:00:01]} 44. Rf7+ {[%emt 0:00:01]} Kg8 {[%emt 0:00:02]} 45. Rxc7 {[%emt 0:00:00]} Ra5 {[%emt 0:00:02]} 46. f6 {[%emt 0:00:02]} Rf5 {[%emt 0:00:01]} 47. Bd4 {[%emt 0:00:00]} Rf3 {[%emt 0:00:01]} 48. Rxb7 {[%emt 0:00:03]} a5 {[%emt 0:00:07]} 49. h4 {[%emt 0:00:03]} 1-0

[Event "July 23 Late 2024"]
[Site "Chess.com"]
[Date "2024.07.23"]
[Round "6.63"]
[White "Chen, Max"]
[Black "Rogov, Matfey"]
[Result "1-0"]
[ECO "A09"]
[WhiteElo "2556"]
[BlackElo "2685"]
[PlyCount "127"]
[EventDate "2024.??.??"]
[WhiteTeam "CAN"]
[BlackTeam "RUS"]
[TimeControl "180+1"]
[WhiteClock "0:00:07"]

1. Nf3 {[%emt 0:00:02]} d5 {[%emt 0:00:04]} 2. c4 {[%emt 0:00:02]} d4 {[%emt 0:00:02]} 3. g3 {[%emt 0:00:03]} Nc6 {[%emt 0:00:02]} 4. Bg2 {[%emt 0:00:02]} e5 {[%emt 0:00:00]} 5. d3 {[%emt 0:00:01]} Bb4+ {[%emt 0:00:02]} 6. Nbd2 {[%emt 0:00:04]} a5 {[%emt 0:00:02]} 7. O-O {[%emt 0:00:02]} Nf6 {[%emt 0:00:02]} 8. a3 {[%emt 0:00:02]} Be7 {[%emt 0:00:01]} 9. Qa4 {[%emt 0:00:17]} ({RR} 9. b3 O-O 10. Rb1 Re8 11. Ne1 Bf5 12. Nc2 Bf8 13. b4 axb4 14. axb4 Qd7 15. b5 Na5 16. Nf3 h6 17. Ra1 Bd6 18. e3 Nb3 19. Rxa8 Rxa8 20. Ncxd4 Nxc1 21. Nxf5 Nxd3 22. Bh3 Qd8 23. Qxd3 e4 {Kozul,Z (2597)-Brkic,A (2598) Sarajevo 2018 1-0 (63)}) ({RR} 9. Ne1 O-O 10. b3 Nd7 11. Nc2 Nc5 12. Rb1 Bg4 13. Ne4 Na6 14. f4 Qd7 15. Nf2 Bh5 16. Bh3 f5 17. Bg2 exf4 18. Bxf4 Rae8 19. Re1 Nc5 20. Qc1 h6 21. h4 Bf6 22. Bf3 Bxf3 23. exf3 b6 {Sandeep,S (1746)-Panda,S (2383) Ahmedabad IND 2025 0-1 (35)}) 9... Bd7 {[%emt 0:00:06]} 10. Qc2 {[%emt 0:00:03]} O-O {[%emt 0:00:06]} 11. e4 $146 {[%emt 0:00:06]} ({RR} 11. b3 Qc8 12. Re1 Bh3 13. Bh1 Re8 14. Bb2 Qf5 15. Ne4 Ng4 16. e3 Rad8 17. Rad1 h5 18. Qc1 dxe3 19. fxe3 Qg6 20. Qa1 f5 21. Nf2 Nxf2 22. Kxf2 e4 23. Ne5 Nxe5 24. Bxe5 Bg4 25. Rd2 Rxd3 {Bodicky,M (2047)-Simek,P (2290) Czech Republic 2019 0-1 (34)}) 11... dxe3 {[%emt 0:00:04]} 12. fxe3 {[%emt 0:00:00]} Ng4 {[%emt 0:00:04]} 13. Re1 {[%emt 0:00:01]} Bc5 {[%emt 0:00:09]} 14. Ne4 {[%emt 0:00:02]} Ba7 {[%emt 0:00:07]} 15. c5 {[%emt 0:00:16]} b6 {[%emt 0:00:02]} 16. d4 {[%emt 0:00:08]} Bf5 {[%emt 0:00:06]} 17. h3 {[%emt 0:00:15]} Nf6 {[%emt 0:00:07]} 18. Nxf6+ {[%emt 0:00:02]} Qxf6 {[%emt 0:00:00]} 19. Qf2 {[%emt 0:00:20]} bxc5 {[%emt 0:00:19]} 20. Nh4 {[%emt 0:00:07]} Bd7 {[%emt 0:00:23]} 21. Qxf6 {[%emt 0:00:16]} gxf6 {[%emt 0:00:00]} 22. d5 {[%emt 0:00:12]} Ne7 {[%emt 0:00:16]} 23. d6 {[%emt 0:00:05]} cxd6 {[%emt 0:00:09]} 24. Bxa8 {[%emt 0:00:07]} Rxa8 {[%emt 0:00:00]} 25. e4 {[%emt 0:00:01]} Rb8 {[%emt 0:00:11]} 26. Kg2 {[%emt 0:00:14]} c4 {[%emt 0:00:05]} 27. Rf1 {[%emt 0:00:17]} Bc6 {[%emt 0:00:07]} 28. Rxf6 {[%emt 0:00:04]} Bxe4+ {[%emt 0:00:01]} 29. Kf1 {[%emt 0:00:01]} Bc5 {[%emt 0:00:07]} 30. g4 {[%emt 0:00:08]} Nd5 {[%emt 0:00:03]} 31. Rh6 {[%emt 0:00:04]} f6 {[%emt 0:00:06]} 32. Nf5 {[%emt 0:00:01]} Rb3 {[%emt 0:00:06]} 33. Ke2 {[%emt 0:00:04]} c3 {[%emt 0:00:08]} 34. bxc3 {[%emt 0:00:02]} Nxc3+ {[%emt 0:00:03]} 35. Ke1 {[%emt 0:00:01]} Nd5 {[%emt 0:00:05]} 36. Bd2 {[%emt 0:00:01]} a4 {[%emt 0:00:01]} 37. Ke2 {[%emt 0:00:01]} Bd3+ {[%emt 0:00:03]} 38. Kd1 {[%emt 0:00:01]} Bxa3 {[%emt 0:00:04]} 39. Ne3 {[%emt 0:00:02]} Nf4 {[%emt 0:00:06]} 40. Rxf6 {[%emt 0:00:01]} Bc5 {[%emt 0:00:02]} 41. Rf5 {[%emt 0:00:02]} Rb2 {[%emt 0:00:02]} 42. Kc1 {[%emt 0:00:01]} Bxe3 {[%emt 0:00:02]} 43. Bxe3 {[%emt 0:00:01]} Rc2+ {[%emt 0:00:01]} 44. Kd1 {[%emt 0:00:01]} Nd5 {[%emt 0:00:03]} 45. Bd2 {[%emt 0:00:01]} Rc4 {[%emt 0:00:03]} 46. Rf3 {[%emt 0:00:01]} e4 {[%emt 0:00:01]} 47. Rf2 {[%emt 0:00:01]} e3 {[%emt 0:00:01]} 48. Bxe3 {[%emt 0:00:01]} Nxe3+ {[%emt 0:00:00]} 49. Kd2 {[%emt 0:00:00]} Nc2 {[%emt 0:00:02]} 50. Kxd3 {[%emt 0:00:00]} Nxa1 {[%emt 0:00:03]} 51. Kxc4 {[%emt 0:00:01]} Nb3 {[%emt 0:00:00]} 52. Ra2 {[%emt 0:00:01]} Na5+ {[%emt 0:00:01]} 53. Kd5 {[%emt 0:00:00]} Kg7 {[%emt 0:00:02]} 54. Rxa4 {[%emt 0:00:01]} Nb3 {[%emt 0:00:00]} 55. Kxd6 {[%emt 0:00:01]} Nd2 {[%emt 0:00:01]} 56. Rd4 {[%emt 0:00:01]} Nf3 {[%emt 0:00:01]} 57. Rd5 {[%emt 0:00:01]} Kg6 {[%emt 0:00:01]} 58. Ke6 {[%emt 0:00:01]} h6 {[%emt 0:00:01]} 59. Ke7 {[%emt 0:00:01]} Ng5 {[%emt 0:00:01]} 60. h4 {[%emt 0:00:00]} Nf3 {[%emt 0:00:02]} 61. h5+ {[%emt 0:00:01]} Kg7 {[%emt 0:00:00]} 62. Rf5 {[%emt 0:00:01]} Nh2 {[%emt 0:00:01]} 63. Rf6 {[%emt 0:00:01]} Nxg4 {[%emt 0:00:04]} 64. Rg6+ {[%emt 0:00:00]} 1-0

[Event "July 23 Late 2024"]
[Site "Chess.com"]
[Date "2024.07.23"]
[Round "6.94"]
[White "Brady, Tyson"]
[Black "NikitaShandrygin"]
[Result "1-0"]
[ECO "A07"]
[WhiteElo "2526"]
[BlackElo "2720"]
[PlyCount "77"]
[EventDate "2024.??.??"]
[WhiteTeam "USA"]
[TimeControl "180+1"]
[WhiteClock "0:00:39"]
[BlackClock "0:00:19"]

1. Nf3 {[%emt 0:00:02]} Nf6 {[%emt 0:00:03]} 2. g3 {[%emt 0:00:02]} g6 {[%emt 0:00:01]} 3. Bg2 {[%emt 0:00:00]} Bg7 {[%emt 0:00:00]} 4. O-O {[%emt 0:00:00]} O-O {[%emt 0:00:00]} 5. d3 {[%emt 0:00:00]} d5 {[%emt 0:00:00]} 6. c4 {[%emt 0:00:02]} Nc6 {[%emt 0:00:00]} 7. cxd5 {[%emt 0:00:03]} Nxd5 {[%emt 0:00:00]} 8. a3 {[%emt 0:00:02]} a5 {[%emt 0:00:02]} ({RR} 8... Bg4 9. h3 Bxf3 10. Bxf3 Qd7 11. Qb3 Nb6 12. Bg2 Nd4 13. Qd1 e5 14. Nc3 Rad8 15. Be3 c6 16. Rc1 Rfe8 17. b4 Nd5 18. Nxd5 cxd5 19. Bxd4 exd4 20. h4 Qe6 21. Rc7 Qxe2 22. Rxb7 a6 23. Ra7 {Stojanovski,S (2169)-Schnaider,I (2323) chess.com INT 2024 1-0 (71)}) 9. Qc2 {[%emt 0:00:02]} e5 {[%emt 0:00:02]} 10. Nc3 {[%emt 0:00:00]} Nb6 $146 {[%emt 0:00:01]} ({RR} 10... h6 11. Nxd5 Qxd5 12. Be3 Be6 13. Ng5 Qb3 14. Qxb3 Bxb3 15. Ne4 Bd5 16. Nf6+ Bxf6 17. Bxd5 Kg7 18. Rac1 Ra6 19. Rc4 Rb8 20. Rfc1 Ne7 21. Bf3 c6 22. g4 Nc8 23. b4 Nd6 24. Rc5 a4 25. R5c2 {Stojanovski,S (2179)-Czerw,D (2400) chess.com INT 2023 0-1 (65)}) 11. Be3 {[%emt 0:00:03]} Nd4 {[%emt 0:00:02]} 12. Qd1 {[%emt 0:00:03]} Be6 {[%emt 0:00:03]} 13. Bxd4 {[%emt 0:00:04]} exd4 {[%emt 0:00:01]} 14. Na4 {[%emt 0:00:01]} c6 {[%emt 0:00:06]} 15. Nc5 {[%emt 0:00:04]} Bc8 {[%emt 0:00:02]} 16. Rc1 {[%emt 0:00:06]} Nd5 {[%emt 0:00:01]} 17. Nd2 {[%emt 0:00:08]} b6 {[%emt 0:00:05]} 18. Na4 {[%emt 0:00:10]} Bb7 {[%emt 0:00:34]} 19. Bxd5 {[%emt 0:00:10]} cxd5 {[%emt 0:00:00]} 20. Qb3 {[%emt 0:00:04]} Ra6 {[%emt 0:00:01]} 21. Nf3 {[%emt 0:00:11]} Re8 {[%emt 0:00:24]} 22. Rc2 {[%emt 0:00:02]} Bc8 {[%emt 0:00:09]} 23. Qb5 {[%emt 0:00:11]} Qd7 {[%emt 0:00:03]} 24. Qxd7 {[%emt 0:00:25]} Bxd7 {[%emt 0:00:01]} 25. b3 {[%emt 0:00:00]} Bf8 {[%emt 0:00:12]} 26. Ra1 {[%emt 0:00:04]} Bxa4 {[%emt 0:00:41]} 27. bxa4 {[%emt 0:00:00]} Bc5 {[%emt 0:00:00]} 28. Kf1 {[%emt 0:00:03]} Ra7 {[%emt 0:00:10]} 29. Nd2 {[%emt 0:00:02]} Kg7 {[%emt 0:00:13]} 30. Nb3 {[%emt 0:00:01]} Bd6 {[%emt 0:00:04]} 31. Nxd4 {[%emt 0:00:10]} Be5 {[%emt 0:00:02]} 32. Nb5 {[%emt 0:00:01]} Rae7 {[%emt 0:00:05]} 33. Rb1 {[%emt 0:00:10]} h5 {[%emt 0:00:00]} 34. h4 {[%emt 0:00:02]} g5 {[%emt 0:00:02]} 35. hxg5 {[%emt 0:00:00]} Kg6 {[%emt 0:00:00]} 36. Rc6+ {[%emt 0:00:11]} Kf5 {[%emt 0:00:01]} 37. d4 {[%emt 0:00:19]} Bxg3 {[%emt 0:00:01]} 38. fxg3 {[%emt 0:00:02]} Rxe2 {[%emt 0:00:08]} 39. Nd6+ {[%emt 0:00:01]} 1-0

[Event "July 23 Late 2024"]
[Site "Chess.com"]
[Date "2024.07.23"]
[Round "7.55"]
[White "Fantinel, Thibault"]
[Black "Esmeraldas Huachi, Anderson"]
[Result "1-0"]
[ECO "A08"]
[WhiteElo "2671"]
[BlackElo "2516"]
[PlyCount "215"]
[EventDate "2024.??.??"]
[WhiteTeam "FRA"]
[BlackTeam "ECU"]
[TimeControl "180+1"]
[WhiteClock "0:00:15"]

1. Nf3 {[%emt 0:00:02]} d5 {[%emt 0:00:03]} 2. g3 {[%emt 0:00:01]} c5 {[%emt 0:00:01]} 3. Bg2 {[%emt 0:00:01]} Nf6 {[%emt 0:00:00]} 4. O-O {[%emt 0:00:01]} h6 {[%emt 0:00:02]} 5. b3 {[%emt 0:00:15]} e6 {[%emt 0:00:03]} 6. Bb2 {[%emt 0:00:01]} Be7 {[%emt 0:00:01]} 7. e3 {[%emt 0:00:04]} O-O {[%emt 0:00:01]} 8. c4 {[%emt 0:00:01]} Nc6 {[%emt 0:00:03]} 9. cxd5 $146 {[%emt 0:00:02]} ({RR} 9. Qe2 b6 10. Rd1 Bb7 11. d4 Rc8 12. cxd5 exd5 13. Nc3 Rc7 14. Rac1 Qa8 15. dxc5 bxc5 16. Na4 Nb4 17. a3 Ba6 18. Qd2 Nd3 19. Rc2 Ne4 20. Qa5 Qb7 21. Ne1 Nxb2 22. Rxb2 Bf6 23. Rbb1 Be2 {Ramirez Madrid,G (1950)-Esmeraldas Huachi,A (2148) chess.com INT 2024 1-0 (31)}) 9... exd5 {[%emt 0:00:01]} 10. d4 {[%emt 0:00:01]} b6 {[%emt 0:00:06]} 11. Nc3 {[%emt 0:00:02]} Bb7 {[%emt 0:00:05]} 12. Rc1 {[%emt 0:00:05]} Rc8 {[%emt 0:00:01]} 13. Bh3 {[%emt 0:00:10]} Ra8 {[%emt 0:00:11]} 14. dxc5 {[%emt 0:00:04]} bxc5 {[%emt 0:00:01]} 15. Na4 {[%emt 0:00:05]} Ba6 {[%emt 0:00:03]} 16. Re1 {[%emt 0:00:06]} c4 {[%emt 0:00:00]} 17. Bf1 {[%emt 0:00:07]} Na5 {[%emt 0:00:16]} 18. Nd4 {[%emt 0:00:27]} Bb4 {[%emt 0:00:13]} 19. Bc3 {[%emt 0:00:04]} Bxc3 {[%emt 0:00:07]} 20. Nxc3 {[%emt 0:00:12]} Qb6 {[%emt 0:00:04]} 21. Bg2 {[%emt 0:00:08]} Rad8 {[%emt 0:00:04]} 22. Na4 {[%emt 0:00:03]} Qc7 {[%emt 0:00:12]} 23. Nf5 {[%emt 0:00:10]} Qe5 {[%emt 0:00:07]} 24. Nd4 {[%emt 0:00:07]} Ne4 {[%emt 0:00:04]} 25. Nc3 {[%emt 0:00:19]} Rc8 {[%emt 0:00:27]} 26. Nxe4 {[%emt 0:00:05]} dxe4 {[%emt 0:00:00]} 27. Qg4 {[%emt 0:00:05]} f5 {[%emt 0:00:04]} 28. Qh5 {[%emt 0:00:09]} c3 {[%emt 0:00:07]} 29. Bf1 {[%emt 0:00:11]} Bxf1 {[%emt 0:00:02]} 30. Kxf1 {[%emt 0:00:00]} Nc6 {[%emt 0:00:07]} 31. Nxc6 {[%emt 0:00:07]} Rxc6 {[%emt 0:00:00]} 32. Qe2 {[%emt 0:00:00]} Rfc8 {[%emt 0:00:04]} 33. Rc2 {[%emt 0:00:01]} a5 {[%emt 0:00:02]} 34. Rec1 {[%emt 0:00:01]} Qd5 {[%emt 0:00:03]} 35. Kg2 {[%emt 0:00:02]} Qd3 {[%emt 0:00:01]} 36. Qh5 {[%emt 0:00:00]} Qd5 {[%emt 0:00:03]} 37. Qe2 {[%emt 0:00:02]} Qe5 {[%emt 0:00:04]} 38. h4 {[%emt 0:00:06]} Rd6 {[%emt 0:00:00]} 39. Qe1 {[%emt 0:00:02]} Rd3 {[%emt 0:00:01]} 40. Qe2 {[%emt 0:00:01]} Rc7 {[%emt 0:00:03]} 41. Qh5 {[%emt 0:00:01]} Kh7 {[%emt 0:00:01]} 42. Qe2 {[%emt 0:00:02]} Qd5 {[%emt 0:00:02]} 43. Qe1 {[%emt 0:00:01]} Rc6 {[%emt 0:00:07]} 44. Rxc3 {[%emt 0:00:03]} Rcxc3 {[%emt 0:00:03]} 45. Rxc3 {[%emt 0:00:00]} Rd2 {[%emt 0:00:00]} 46. Rc5 {[%emt 0:00:04]} Qd7 {[%emt 0:00:09]} 47. Rxf5 {[%emt 0:00:03]} Rxa2 {[%emt 0:00:05]} 48. Rxa5 {[%emt 0:00:00]} Rb2 {[%emt 0:00:03]} 49. Qc3 {[%emt 0:00:02]} Rb1 {[%emt 0:00:11]} 50. Qe5 {[%emt 0:00:01]} Qg4 {[%emt 0:00:06]} 51. Qf5+ {[%emt 0:00:01]} Qxf5 {[%emt 0:00:00]} 52. Rxf5 {[%emt 0:00:01]} Rxb3 {[%emt 0:00:00]} 53. Re5 {[%emt 0:00:01]} Rb4 {[%emt 0:00:01]} 54. g4 {[%emt 0:00:01]} Kg6 {[%emt 0:00:01]} 55. h5+ {[%emt 0:00:01]} Kf6 {[%emt 0:00:01]} 56. Rf5+ {[%emt 0:00:00]} Ke6 {[%emt 0:00:01]} 57. Kg3 {[%emt 0:00:00]} Rb1 {[%emt 0:00:01]} 58. Kf4 {[%emt 0:00:01]} Rg1 {[%emt 0:00:01]} 59. Re5+ {[%emt 0:00:01]} Kf6 {[%emt 0:00:02]} 60. Rxe4 {[%emt 0:00:01]} Rg2 {[%emt 0:00:00]} 61. Kf3 {[%emt 0:00:00]} Rg1 {[%emt 0:00:01]} 62. Rf4+ {[%emt 0:00:00]} Ke6 {[%emt 0:00:01]} 63. Rc4 {[%emt 0:00:01]} Rd1 {[%emt 0:00:01]} 64. Rc6+ {[%emt 0:00:00]} Ke5 {[%emt 0:00:00]} 65. Rc5+ {[%emt 0:00:01]} Kf6 {[%emt 0:00:01]} 66. Rc6+ {[%emt 0:00:01]} Ke5 {[%emt 0:00:01]} 67. Rc7 {[%emt 0:00:00]} Kf6 {[%emt 0:00:00]} 68. Ra7 {[%emt 0:00:01]} Rd6 {[%emt 0:00:02]} 69. Kg3 {[%emt 0:00:00]} Rb6 {[%emt 0:00:00]} 70. f3 {[%emt 0:00:01]} Rb4 {[%emt 0:00:01]} 71. e4 {[%emt 0:00:01]} Rb5 {[%emt 0:00:01]} 72. Kf4 {[%emt 0:00:01]} g5+ {[%emt 0:00:06]} 73. hxg6 {[%emt 0:00:01]} Kxg6 {[%emt 0:00:00]} 74. Ra6+ {[%emt 0:00:01]} Kg7 {[%emt 0:00:01]} 75. Rd6 {[%emt 0:00:01]} Rb7 {[%emt 0:00:00]} 76. Rd5 {[%emt 0:00:00]} Rf7+ {[%emt 0:00:01]} 77. Kg3 {[%emt 0:00:01]} Re7 {[%emt 0:00:00]} 78. e5 {[%emt 0:00:01]} Kf7 {[%emt 0:00:01]} 79. f4 {[%emt 0:00:01]} Ra7 {[%emt 0:00:02]} 80. Rd4 {[%emt 0:00:01]} Kg7 {[%emt 0:00:00]} 81. Kf3 {[%emt 0:00:00]} Ra1 {[%emt 0:00:01]} 82. Ke4 {[%emt 0:00:00]} Rg1 {[%emt 0:00:01]} 83. Kf5 {[%emt 0:00:01]} Ra1 {[%emt 0:00:02]} 84. Rd7+ {[%emt 0:00:00]} Kf8 {[%emt 0:00:00]} 85. Rh7 {[%emt 0:00:02]} Ra6 {[%emt 0:00:01]} 86. e6 {[%emt 0:00:00]} Ra5+ {[%emt 0:00:01]} 87. Kf6 {[%emt 0:00:01]} Kg8 {[%emt 0:00:00]} 88. Rxh6 {[%emt 0:00:01]} Ra8 {[%emt 0:00:02]} 89. Rg6+ {[%emt 0:00:01]} Kh7 {[%emt 0:00:00]} 90. f5 {[%emt 0:00:00]} Rf8+ {[%emt 0:00:02]} 91. Ke7 {[%emt 0:00:01]} Rh8 {[%emt 0:00:03]} 92. Rf6 {[%emt 0:00:01]} Ra8 {[%emt 0:00:01]} 93. Rf7+ {[%emt 0:00:01]} Kg8 {[%emt 0:00:01]} 94. Kf6 {[%emt 0:00:01]} Ra4 {[%emt 0:00:02]} 95. g5 {[%emt 0:00:01]} Re4 {[%emt 0:00:01]} 96. g6 {[%emt 0:00:00]} Rh4 {[%emt 0:00:02]} 97. Rd7 {[%emt 0:00:01]} Rd4 {[%emt 0:00:01]} 98. Rd8+ {[%emt 0:00:00]} Rxd8 {[%emt 0:00:01]} 99. e7 {[%emt 0:00:04]} Ra8 {[%emt 0:00:04]} 100. Ke6 {[%emt 0:00:01]} Ra6+ {[%emt 0:00:00]} 101. Kd7 {[%emt 0:00:01]} Ra7+ {[%emt 0:00:01]} 102. Kd6 {[%emt 0:00:00]} Ra6+ {[%emt 0:00:01]} 103. Ke5 {[%emt 0:00:01]} Ra5+ {[%emt 0:00:01]} 104. Kf4 {[%emt 0:00:01]} Ra8 {[%emt 0:00:02]} 105. f6 {[%emt 0:00:00]} Kh8 {[%emt 0:00:01]} 106. f7 {[%emt 0:00:01]} Kg7 {[%emt 0:00:01]} 107. e8=Q {[%emt 0:00:03]} Ra4+ {[%emt 0:00:03]} 108. Kf5 {[%emt 0:00:01]} 1-0

[Event "July 23 Late 2024"]
[Site "Chess.com"]
[Date "2024.07.23"]
[Round "9.70"]
[White "Svane, Rasmus"]
[Black "Esmeraldas Huachi, Anderson"]
[Result "1-0"]
[ECO "A08"]
[WhiteElo "2856"]
[BlackElo "2506"]
[PlyCount "67"]
[EventDate "2024.??.??"]
[WhiteTeam "GER"]
[BlackTeam "ECU"]
[TimeControl "180+1"]
[WhiteClock "0:01:49"]
[BlackClock "0:01:14"]

1. Nf3 {[%emt 0:00:05] Horn,Peter} d5 {[%emt 0:00:03]} 2. g3 {[%emt 0:00:01]} c5 {[%emt 0:00:01]} 3. Bg2 {[%emt 0:00:01]} Nf6 {[%emt 0:00:00]} 4. O-O {[%emt 0:00:00]} Bf5 {[%emt 0:00:01]} ({RR} 4... b5 5. d3 e6 6. e4 dxe4 ({RR} 6... Bb7 7. e5) ({RR} 6... Be7) 7. Ng5 Bb7 8. Nc3 ({RR} 8. a4 a6 9. Nc3 Qb6 10. Ncxe4 Nxe4 11. Nxe4 Nc6 12. Be3 Rd8 13. axb5 axb5 14. Qe1) 8... Be7 9. Ngxe4 Nxe4 10. Nxe4 Nc6 ({RR} 10... Qb6 11. a4 a6) 11. a4 bxa4 ({RR} 11... b4) ({RR} 11... a6 12. Be3) 12. Rxa4 O-O 13. Be3 Qb6 14. b3 Nb4 15. Nd2 Bxg2 16. Kxg2 Qc6+ 17. Kg1 e5 18. Nc4 Qd5 19. Bd2 {Markowski,T (2587)-Kempinski,R (2553) Warsaw 2003 CBM 095 [Horn,Peter] 1-0 (57)}) 5. d4 {[%emt 0:00:02]} ({RR} 5. d3 e6 6. Nbd2 h6 7. Re1 Be7 8. e4 dxe4 9. Nh4 Bg4 10. f3 exf3 11. Bxf3 Bxf3 12. Qxf3 Nc6 13. c3 O-O 14. Ne4 Ne5 15. Nxf6+ Bxf6 16. Qxb7 Rb8 17. Qxa7 Qd5 18. Qa4 Bxh4 19. gxh4 Nf3+ {Wueest,A (2234)-Kochiev,I (2064) chess.com INT 2024 0-1 (37)}) 5... cxd4 $146 {[%emt 0:00:03]} ({RR} 5... e6 6. c4 Be7 7. Qb3 Qb6 8. dxc5 Qxb3 9. axb3 Bxb1 10. Rxb1 Nc6 11. Bd2 Ne4 12. cxd5 exd5 13. Be3 O-O 14. Rfd1 Rfd8 15. Rbc1 g6 16. Nd4 f5 17. Ne6 Rd7 18. f3 Nf6 19. Nd4 Kf7 20. Bh3 {Janjic,J (2070)-Jovicic,D (2135) Belgrade 2019 ½-½ (46)}) 6. Nxd4 {[%emt 0:00:00]} Bd7 {[%emt 0:00:02]} 7. c4 {[%emt 0:00:05]} e5 {[%emt 0:00:03]} 8. Nc2 {[%emt 0:00:10]} Bc6 {[%emt 0:00:04]} 9. Bg5 {[%emt 0:00:15]} dxc4 {[%emt 0:00:03]} 10. Qxd8+ {[%emt 0:00:03]} Kxd8 {[%emt 0:00:00]} 11. Nd2 {[%emt 0:00:04]} h6 {[%emt 0:00:07]} 12. Bxf6+ {[%emt 0:00:02]} gxf6 {[%emt 0:00:00]} 13. Nxc4 {[%emt 0:00:00]} Bxg2 {[%emt 0:00:02]} 14. Kxg2 {[%emt 0:00:00]} Nd7 {[%emt 0:00:03]} 15. Rfd1 {[%emt 0:00:05]} Rc8 {[%emt 0:00:02]} 16. N2e3 {[%emt 0:00:01]} b5 {[%emt 0:00:17]} 17. Nd2 {[%emt 0:00:12]} Bc5 {[%emt 0:00:20]} 18. Nf5 {[%emt 0:00:02]} Kc7 {[%emt 0:00:02]} 19. Ne4 {[%emt 0:00:01]} Rhd8 {[%emt 0:00:13]} 20. Rac1 {[%emt 0:00:08]} Kb6 {[%emt 0:00:01]} 21. b4 {[%emt 0:00:05]} Bd4 {[%emt 0:00:09]} 22. Rxc8 {[%emt 0:00:01]} Rxc8 {[%emt 0:00:00]} 23. e3 {[%emt 0:00:01]} Rc2 {[%emt 0:00:27]} 24. exd4 {[%emt 0:00:02]} exd4 {[%emt 0:00:00]} 25. Rxd4 {[%emt 0:00:01]} Ne5 {[%emt 0:00:01]} 26. Rd6+ {[%emt 0:00:02]} Kc7 {[%emt 0:00:01]} 27. Rxf6 {[%emt 0:00:01]} Rxa2 {[%emt 0:00:01]} 28. Nc3 {[%emt 0:00:05]} Rb2 {[%emt 0:00:05]} 29. Nxb5+ {[%emt 0:00:02]} Kb7 {[%emt 0:00:01]} 30. Nbd6+ {[%emt 0:00:02]} Kc6 {[%emt 0:00:01]} 31. Nxf7+ {[%emt 0:00:00]} Kd5 {[%emt 0:00:02]} 32. Ne3+ {[%emt 0:00:05]} Ke4 {[%emt 0:00:00]} 33. Rf4+ {[%emt 0:00:01]} Kd3 {[%emt 0:00:05]} 34. Nxe5+ {[%emt 0:00:01]} 1-0